[Event "European Women Blitz-ch 2024"]
[Site "Monaco"]
[Date "2025.01.10"]
[Round "8.5"]
[White "Tsolakidou, Stavroula"]
[Black "Injac, Teodora"]
[Result "1/2-1/2"]
[Annotator "TA"]
[ECO "C45"]
[WhiteElo "2451"]
[BlackElo "2453"]
[PlyCount "94"]
[EventDate "2025.01.06"]
[EventType "swiss"]
[EventCountry "MNC"]
[SourceTitle "playchess.com"]
[Source "ChessBase"]
[SourceQuality "1"]
[TimeControl "180+2"]

{[%evp 26,94,0,0,0,0,0,0,0,-6,0,-14,0,-7,0,0,0,0,119,67,43,0,125,129,141,100,117,56,60,60,60,60,60,60,60,23,73,53,46,36,36,45,54,8,73,0,8,8,8,0,0,0,0,0,0,0,0,0,0,0,0,0,0,0,8,8,8,8,8,8,8]} 1. e4 {[%emt 0:00:02]} e5 {[%emt 0:00:01]} 2. Nf3 {[%emt 0:00:02]} Nc6 {[%emt 0:00:00]} 3. d4 {[%emt 0:00:01]} exd4 {[%emt 0:00:01]} 4. Nxd4 {[%emt 0:00:02]} Bc5 {[%emt 0:00:02]} 5. Nb3 {[%emt 0:00:02]} Bb6 {[%emt 0:00:01]} 6. Qe2 {[%emt 0:00:02]} a5 {[%emt 0:00:00]} 7. a4 {[%emt 0:00:04]} d6 {[%emt 0:00:05]} 8. Be3 {[%emt 0:00:03]} Bxe3 {[%emt 0:00:09]} 9. Qxe3 {[%emt 0:00:01]} Nf6 {[%emt 0:00:02]} 10. Nc3 {[%emt 0:00:03]} Be6 {[%emt 0:00:10]} 11. O-O-O {[%emt 0:00:28]} Bxb3 {[%emt 0:00:04]} 12. cxb3 {[%emt 0:00:01]} O-O {[%emt 0:00:02]} 13. h3 {[%emt 0:00:20]} Nd7 {[%emt 0:00:07]} 14. f4 {[%emt 0:00:08]} Nb4 {[%emt 0:00:17]} 15. g4 {[%emt 0:00:10]} Re8 {[%emt 0:00:12]} 16. Bc4 {[%emt 0:00:31]} Qe7 {[%emt 0:00:07]} 17. Rhe1 {[%emt 0:00:07]} Rad8 {[%emt 0:01:05]} 18. g5 {[%emt 0:00:08]} Nc5 {[%emt 0:00:22]} 19. Qg3 {[%emt 0:00:01]} c6 {[%emt 0:00:06]} 20. Kb1 {[%emt 0:00:11]} Nca6 {[%emt 0:00:20]} 21. h4 {[%emt 0:00:14]} Qd7 {[%emt 0:00:24] [#]} (21... Nc5 $11) 22. h5 {[%emt 0:00:21]} (22. g6 $1 $16 hxg6 23. h5 (23. Qxg6 d5 $11)) 22... d5 $1 $14 {[%emt 0:00:00]} 23. g6 {[%emt 0:00:02]} (23. h6 $5) 23... hxg6 {[%emt 0:00:03]} (23... h6 $11) 24. hxg6 $16 {[%emt 0:00:01]} (24. exd5 Qf5+ (24... gxh5 25. Rxe8+ Rxe8 26. Qg5 $11) 25. Bd3 Nxd3 (25... Qxh5 $2 26. Rh1 $18) 26. Rxe8+ Rxe8 $11) 24... fxg6 {[%emt 0:00:01]} 25. Qxg6 {[%emt 0:00:07]} (25. exd5 Qf5+ 26. Bd3 Nxd3 27. Rxe8+ Rxe8 $17) 25... Qf7 {[%emt 0:00:07]} 26. Qxf7+ {[%emt 0:00:09]} (26. Qg5 $16 {[%cal Re4d5]} Nc7 27. Rh1) 26... Kxf7 $14 {[%emt 0:00:01]} 27. exd5 {[%emt 0:00:02]} cxd5 {[%emt 0:00:03]} 28. Rxe8 {[%emt 0:00:07]} Kxe8 {[%emt 0:00:02]} 29. Nxd5 {[%emt 0:00:05]} Nxd5 {[%emt 0:00:02]} 30. Bxd5 {[%emt 0:00:08]} Nc5 {[%emt 0:00:00]} (30... Rd7 $11) 31. Bf7+ {[%emt 0:00:13]} Ke7 $1 {[%emt 0:00:01]} 32. Rxd8 {[%emt 0:00:01]} Kxd8 {[%emt 0:00:01]} 33. Kc2 {[%emt 0:00:01]} Ke7 {[%emt 0:00:02]} 34. Bh5 {[%emt 0:00:06]} (34. Bd5 $14 {deserves consideration.}) 34... Kd6 {[%emt 0:00:01]} (34... Ne6 $11 {remains equal.}) 35. Bf3 {[%emt 0:00:03]} ({White should try} 35. Kc3 $16) 35... b6 {[%emt 0:00:00]} 36. Kc3 {[%emt 0:00:02]} g6 {[%emt 0:00:05]} 37. Kc4 {[%emt 0:00:01]} Ne6 {[%emt 0:00:02]} 38. b4 {[%emt 0:00:03]} axb4 {[%emt 0:00:03]} 39. Kxb4 {[%emt 0:00:01]} Nxf4 {[%emt 0:00:02]} 40. Kb5 {[%emt 0:00:01]} Kc7 {[%emt 0:00:01]} 41. b4 {[%emt 0:00:02]} Nd3 {[%emt 0:00:03]} 42. a5 {[%emt 0:00:02]} bxa5 {[%emt 0:00:02]} 43. bxa5 {[%emt 0:00:01]} Ne5 {[%emt 0:00:04]} 44. Be4 {[%emt 0:00:01]} Nd7 {[%emt 0:00:03]} 45. Bxg6 {[%emt 0:00:02]} (45. a6 $5 Kb8 $8 46. Bxg6 $11) 45... Kb7 {[%emt 0:00:03]} 46. Be4+ {[%emt 0:00:04]} Ka7 {[%emt 0:00:00]} 47. a6 {[%emt 0:00:01]} Nb8 {[%emt 0:00:01]} 1/2-1/2

[Event "European Women Blitz-ch 2024"]
[Site "Monaco"]
[Date "2025.01.10"]
[Round "8.6"]
[White "Matnadze Bujiashvili, Ann"]
[Black "Sliwicka, Alicja"]
[Result "0-1"]
[Annotator "TA"]
[ECO "E01"]
[WhiteElo "2315"]
[BlackElo "2344"]
[PlyCount "76"]
[EventDate "2025.01.06"]
[EventType "swiss"]
[EventCountry "MNC"]
[SourceTitle "playchess.com"]
[Source "ChessBase"]
[SourceQuality "1"]
[TimeControl "180+2"]

{[%evp 9,76,35,25,34,27,33,36,30,19,24,51,8,0,0,2,10,9,0,0,-25,-31,-16,-2,-80,-49,-60,-67,-110,-46,-39,-13,-22,-28,-23,-25,-16,9,-24,-33,-44,-23,-11,-21,-14,-12,-95,-70,-148,-138,-262,-198,-438,-414,-450,-420,-456,-444,-437,-439,-473,-451,-762,-758,-1591,-1612,-6628,-6628,-5489,-4929]} 1. d4 {[%emt 0:00:02]} d5 {[%emt 0:00:02]} 2. c4 {[%emt 0:00:02]} e6 {[%emt 0:00:01]} 3. Nf3 {[%emt 0:00:01]} Nf6 {[%emt 0:00:02]} 4. g3 {[%emt 0:00:01]} h6 {[%emt 0:00:01]} 5. Bg2 {[%emt 0:00:01]} Bd6 {[%emt 0:00:02]} 6. Nc3 {[%emt 0:00:02]} O-O {[%emt 0:00:03]} 7. O-O {[%emt 0:00:01]} Nc6 {[%emt 0:00:05] Against Ne5} 8. b3 {[%emt 0:00:06] White is slightly better.} dxc4 {[%emt 0:00:02]} 9. bxc4 {[%emt 0:00:01]} e5 {[%emt 0:00:02]} 10. d5 {[%emt 0:00:07]} Na5 {[%emt 0:00:01]} 11. Nd2 {[%emt 0:00:01]} b6 {[%emt 0:00:04]} 12. Qc2 {[%emt 0:00:07]} Bd7 {[%emt 0:00:09]} 13. Rd1 {[%emt 0:00:05]} Qe7 {[%emt 0:00:04]} 14. Nce4 {[%emt 0:00:16]} Nxe4 {[%emt 0:00:03]} 15. Nxe4 {[%emt 0:00:01][%cal Oc4c5]} f5 {[%emt 0:00:04]} 16. Nd2 {[%emt 0:00:04]} (16. Nxd6 $11 {remains equal.} cxd6 17. c5 bxc5 18. Rb1) 16... Rac8 {[%emt 0:00:06]} 17. Nb3 {[%emt 0:00:02]} Nb7 {[%emt 0:00:03][%cal Ba5b7,Bb7d6,Bd6f7,Bf7e5,Be5g4][%mdl 32]} 18. Be3 {[%emt 0:00:12][%cal Oc4c5]} c5 {[%emt 0:00:15]} (18... f4 $17 19. Bd2 a5) 19. a4 $15 {[%emt 0:00:08]} a5 {[%emt 0:00:04]} 20. Bd2 {[%emt 0:00:12]} Bc7 {[%emt 0:00:05]} 21. Bc3 {[%emt 0:00:21]} Nd6 {[%emt 0:00:01]} 22. Nd2 {[%emt 0:00:01]} Rce8 {[%emt 0:00:11]} 23. e3 {[%emt 0:00:04]} e4 {[%emt 0:00:11]} 24. Re1 {[%emt 0:00:04]} Nf7 {[%emt 0:00:02]} 25. f4 {[%emt 0:00:04]} exf3 {[%emt 0:00:09]} 26. Nxf3 {[%emt 0:00:08]} Ne5 {[%emt 0:00:11]} 27. Nd2 {[%emt 0:00:27]} (27. Bxe5 $11 {keeps the balance.} Bxe5 28. Nxe5 Qxe5 29. Qd2) 27... Ng4 {[%emt 0:00:04]} 28. e4 {[%emt 0:00:06]} (28. Qd3 $15) 28... f4 {[%emt 0:00:03] Black is more active.} 29. e5 {[%emt 0:00:05]} (29. Nf3 $17 fxg3 30. e5 Rxf3 31. Bxf3 Nxe5 (31... gxh2+ 32. Kh1 $15) (31... Nxh2 $2 32. Be4 $18) 32. Bxe5 Bxe5 33. Kh1 (33. hxg3 $2 Qg5 $19)) 29... Bxe5 {[%emt 0:00:21]} 30. gxf4 $2 {[%emt 0:00:12] [#]} (30. Nf3 Qd6 31. Bxe5 Nxe5 32. Nxe5 Rxe5 33. Qc3 Rxe1+ 34. Rxe1) 30... Bd4+ $19 {[%emt 0:00:37]} ({Weaker is} 30... Rxf4 31. Bxe5 Nxe5 32. Ra3 $19) 31. Bxd4 {[%emt 0:00:04]} Qxe1+ {[%emt 0:00:02]} 32. Rxe1 {[%emt 0:00:01]} Rxe1+ {[%emt 0:00:02] Black is clearly winning.} 33. Nf1 {[%emt 0:00:18]} cxd4 {[%emt 0:00:01]} 34. Qd2 {[%emt 0:00:09] [#] Prevents Ne3. White is weak on the dark squares} Rfe8 {[%emt 0:00:11] And now ...R8e2 would win.} 35. h3 {[%emt 0:00:17]} (35. Qxd4 $142 R8e2 36. Bf3) 35... R8e2 {[%emt 0:00:08]} 36. Qxd4 {[%emt 0:00:14]} Ne3 {[%emt 0:00:02]} 37. Qe4 {[%emt 0:00:05]} Rxg2+ {[%emt 0:00:03]} 38. Qxg2 {[%emt 0:00:02]} Nxg2 {[%emt 0:00:02] Weighted Error Value: White=0.94/Black=0.10 (very precise) .  Mistake:       	White=6     	Black=1      Inaccurate:     	White=4     	Black=2      OK:         	White=5     	Black=15     Best:        	White=1     	Black=2} 0-1

[Event "European Women Blitz-ch 2024"]
[Site "Monaco"]
[Date "2025.01.10"]
[Round "8.7"]
[White "Wagner, Dinara"]
[Black "Batsiashvili, Nino"]
[Result "1-0"]
[Annotator "TA"]
[ECO "A57"]
[WhiteElo "2437"]
[BlackElo "2476"]
[PlyCount "77"]
[EventDate "2025.01.06"]
[EventType "swiss"]
[EventCountry "MNC"]
[SourceTitle "playchess.com"]
[Source "ChessBase"]
[SourceQuality "1"]
[TimeControl "180+2"]

{[%evp 11,76,33,36,37,31,48,61,29,54,38,44,18,16,0,0,14,31,20,22,0,0,0,0,-33,-18,-9,-3,-8,-12,-14,22,0,23,0,0,0,0,0,0,0,188,0,0,-69,-66,-52,-46,-203,0,-187,-205,-797,-789,-1232,-766,-673,-100,-102,-91,-224,-179,-156,-142,-182,-14,-70,29999]} 1. d4 {[%emt 0:00:01]} Nf6 {[%emt 0:00:01]} 2. c4 {[%emt 0:00:01]} c5 {[%emt 0:00:00]} 3. d5 {[%emt 0:00:01]} b5 {[%emt 0:00:01]} 4. cxb5 {[%emt 0:00:00]} a6 {[%emt 0:00:01]} 5. e3 {[%emt 0:00:01]} e6 {[%emt 0:00:04]} 6. dxe6 {[%emt 0:00:07]} fxe6 {[%emt 0:00:02]} 7. Nc3 {[%emt 0:00:02]} d5 {[%emt 0:00:04]} 8. Nf3 {[%emt 0:00:01]} Bd6 {[%emt 0:00:03]} 9. Be2 {[%emt 0:00:19][%cal Oe3e4]} O-O {[%emt 0:00:02]} 10. O-O {[%emt 0:00:01]} Bb7 {[%emt 0:00:06]} 11. bxa6 {[%emt 0:00:07]} Nxa6 {[%emt 0:00:02]} 12. b3 {[%emt 0:00:04]} e5 {[%emt 0:00:11][%cal Be6e5,Be5e4][%mdl 32]} 13. Nb5 {[%emt 0:00:41]} Bb8 {[%emt 0:00:16]} 14. Bb2 {[%emt 0:00:00]} Qe7 {[%emt 0:00:06]} 15. h3 {[%emt 0:00:18]} e4 {[%emt 0:00:09]} 16. Nh2 {[%emt 0:00:08]} Nc7 {[%emt 0:00:05]} 17. Nxc7 {[%emt 0:00:15]} Qxc7 {[%emt 0:00:03][%csl Gb8][%cal Rc7h2]} 18. g3 {[%emt 0:00:01]} Ba7 {[%emt 0:00:45]} 19. Rc1 {[%emt 0:00:01][%cal Ob3b4]} Qe7 {[%emt 0:00:06]} 20. Ng4 {[%emt 0:00:04]} Nd7 {[%emt 0:00:18][%mdl 1024] Black has compensation.} 21. Bb5 {[%emt 0:00:20][%cal Og4h6]} Bb6 {[%emt 0:00:15]} 22. a4 {[%emt 0:00:02][%cal Og4h6]} h5 {[%emt 0:00:05]} 23. Nh2 $1 {[%emt 0:00:20]} Rf5 $1 {[%emt 0:00:08]} 24. b4 {[%emt 0:00:25]} cxb4 {[%emt 0:00:16]} 25. Bd4 {[%emt 0:00:00] And now Bxd7 would win.} Bxd4 $2 {[%emt 0:00:05] [#]} (25... Nc5 $11 {and Black has nothing to worry.}) 26. Qxd4 $2 {[%emt 0:00:01]} (26. Rc7 $1 $18) 26... Ne5 $36 {[%emt 0:00:02][%cal Oe5d3][%mdl 2048] Black has the initiative.} 27. Qb6 {[%emt 0:00:06]} (27. Rb1 $11) 27... Rf6 $15 {[%emt 0:00:27]} 28. Qd4 {[%emt 0:00:00]} Raf8 {[%emt 0:00:05]} 29. Rc2 $2 {[%emt 0:00:01]} ({White should try} 29. h4 $1 $15) 29... Qe6 $2 {[%emt 0:00:03]} (29... h4 $1 $19 30. a5 b3) 30. Kg2 $2 {[%emt 0:00:15]} (30. Rb1 $11 {and White has nothing to worry.}) 30... Bc8 {[%emt 0:00:02]} 31. g4 $2 {[%emt 0:00:12]} (31. Kg1) 31... hxg4 $19 {[%emt 0:00:02]} 32. a5 {[%emt 0:00:06]} gxh3+ {[%emt 0:00:01]} 33. Kh1 {[%emt 0:00:00]} Nf3 $2 {[%emt 0:00:01]} (33... Rg6 $19 34. Rfc1 Rg2) 34. Nxf3 $17 {[%emt 0:00:01]} Rxf3 {[%emt 0:00:02]} (34... exf3 35. Rc6 Qg4 36. Qxg4 Bxg4 37. Rxf6 Rxf6 38. a6 $14 (38. Rb1 Bc8 $11)) 35. Rd2 {[%emt 0:00:01]} (35. Bc6 $17 R3f5 36. Rg1) 35... Bb7 {[%emt 0:00:02][%cal Oh3h2]} 36. a6 {[%emt 0:00:01] [#]} Ba8 $1 {[%emt 0:00:00][%cal Oh3h2]} (36... Bxa6 37. Bxa6 Qxa6 38. Qxd5+ R3f7 39. Rg1) 37. a7 {[%emt 0:00:05]} Qf5 $2 {[%emt 0:00:03]} ({Black should play} 37... R3f5 $19 {and ...Rg5 would now be decisive} 38. Rg1 Qe7 (38... Rxf2 39. Qxg7#)) 38. Rg1 {[%emt 0:00:03] Dodges Rg5} (38. Qxb4 $11 h2 39. Qd6) 38... Rxf2 $2 {[%emt 0:00:01][%mdl 8192]} (38... Qf7 $15 39. Ba4 Rf6 (39... Rxf2 $2 {too greedy.} 40. Rxf2 Qe7 41. Rxf8+ Qxf8 42. Bd1 $18)) 39. Qxg7# {[%emt 0:00:08]} 1-0

[Event "European Women Blitz-ch 2024"]
[Site "Monaco"]
[Date "2025.01.10"]
[Round "8.8"]
[White "Toncheva, Nadya"]
[Black "Khademalsharieh, Sarasadat"]
[Result "0-1"]
[Annotator "TA"]
[ECO "C88"]
[WhiteElo "2313"]
[BlackElo "2458"]
[PlyCount "86"]
[EventDate "2025.01.06"]
[EventType "swiss"]
[EventCountry "MNC"]
[SourceTitle "playchess.com"]
[Source "ChessBase"]
[SourceQuality "1"]
[TimeControl "180+2"]

{[%evp 17,86,41,42,39,37,33,57,59,53,61,61,31,33,46,51,37,76,69,116,88,204,94,169,86,84,79,110,0,0,0,0,0,13,-46,-47,-33,-39,-284,-291,-276,-144,-152,-104,-206,0,-272,-235,-660,-557,-29978,-29979,-29990,-29991,-29991,-1850,-29997,-29984,-29984,-29985,-29991,-29992,-29993,-29991,-29994,-29990,-29990,-29990,-29990,-29991,-29991,-29992]} 1. e4 {[%emt 0:00:02]} e5 {[%emt 0:00:01]} 2. Nf3 {[%emt 0:00:01]} Nc6 {[%emt 0:00:01]} 3. Bb5 {[%emt 0:00:02]} a6 {[%emt 0:00:02]} 4. Ba4 {[%emt 0:00:01]} Nf6 {[%emt 0:00:01]} 5. O-O {[%emt 0:00:02]} Be7 {[%emt 0:00:01]} 6. Re1 {[%emt 0:00:02]} b5 {[%emt 0:00:02]} 7. Bb3 {[%emt 0:00:01]} O-O {[%emt 0:00:02]} 8. a4 {[%emt 0:00:03]} Bb7 {[%emt 0:00:05]} 9. d3 {[%emt 0:00:07]} d5 {[%emt 0:00:17]} 10. exd5 {[%emt 0:00:05]} Nxd5 {[%emt 0:00:02]} 11. Nxe5 {[%emt 0:00:05]} Nxe5 {[%emt 0:00:12]} 12. Rxe5 {[%emt 0:00:02] White is slightly better.} Bf6 {[%emt 0:00:13]} 13. Re1 {[%emt 0:00:04]} c5 {[%emt 0:00:08]} 14. axb5 {[%emt 0:00:10]} axb5 {[%emt 0:00:02]} 15. Rxa8 {[%emt 0:00:02]} Qxa8 {[%emt 0:00:01]} 16. Qg4 {[%emt 0:00:09]} Rd8 {[%emt 0:00:34]} 17. Nd2 {[%emt 0:00:08]} Nb6 {[%emt 0:00:32]} (17... Ne7 $14) 18. c3 {[%emt 0:00:47][%cal Ob3f7]} Rxd3 {[%emt 0:00:32]} (18... Bd5 $16) 19. Bc2 {[%emt 0:00:01]} (19. Qf5 $18 {has better winning chances.} Rd6 20. Qxc5) 19... Rd6 {[%emt 0:00:01]} (19... Rd5 $16) 20. Ne4 {[%emt 0:00:08]} (20. Qh5 $18 g6 21. Qxc5) 20... Bxe4 $16 {[%emt 0:00:02]} 21. Bxe4 {[%emt 0:00:01]} Qd8 {[%emt 0:00:03]} 22. Bf4 {[%emt 0:00:23] A strong pair of Bishops.} (22. Qf5 $16 g6 23. Qxc5) 22... Re6 $11 {[%emt 0:00:06]} 23. Qf3 {[%emt 0:00:34]} Na4 $40 {[%emt 0:00:06][%mdl 128] White needs to defend precisely.} 24. Bc1 {[%emt 0:00:16]} g6 {[%emt 0:00:07]} 25. h3 {[%emt 0:00:02]} ({White should play} 25. Rf1 $11) 25... Qe7 $1 $15 {[%emt 0:00:01]} 26. Re2 {[%emt 0:00:06]} c4 {[%emt 0:00:02] Prevents Bd3. ...Nc5 would now be deadly.} 27. Qg4 $2 {[%emt 0:00:15]} (27. Kf1 $1 $15) 27... h5 $19 {[%emt 0:00:13]} 28. Qf4 {[%emt 0:00:08] [#]} Nc5 {[%emt 0:00:04]} ({Black should try} 28... Re5 $1 $19 {Strongly threatening ...Bg5.} 29. Qf3 Nc5) 29. f3 $17 {[%emt 0:00:05]} ({Not} 29. Bf3 $2 Rxe2 30. Bxe2 Qxe2 $19) 29... Qd7 {[%emt 0:00:03]} (29... Re5 $142 {Threatens to win with ...Bg5.} 30. Be3 Nxe4 31. fxe4 Rxe4) 30. Rd2 {[%emt 0:00:02]} (30. Qb8+ $17 {was called for.} Kg7 31. Qg3) 30... Qe7 $2 {[%emt 0:00:04]} ({Better is} 30... Nd3 $19 31. Qe3 b4) 31. Qb8+ {[%emt 0:00:03][%mdl 8192]} (31. Re2 $1 $11 {and White has nothing to worry.}) 31... Kg7 $19 {[%emt 0:00:05]} 32. Qxb5 $2 {[%emt 0:00:02] [#]} (32. Rd1) 32... Nxe4 {[%emt 0:00:02]} 33. fxe4 {[%emt 0:00:01]} Rxe4 {[%emt 0:00:01]} 34. Rc2 {[%emt 0:00:06]} Re1+ {[%emt 0:00:02]} 35. Kh2 {[%emt 0:00:03]} Qe4 {[%emt 0:00:02]} (35... h4 $142 36. Rf2 Rxc1 37. Qxc4 Be5+ 38. g3 Bxg3+ 39. Kg2 Qb7+ 40. Qc6 Qxc6+ 41. Rf3 Qe4 (41... Rc2+ $2 {is a self mate.} 42. Kg1 Qxf3 43. b4 Bh2#) 42. b4 Qe2+ 43. Rf2 Qxf2#) 36. Qa4 {[%emt 0:00:02]} Rxc1 {[%emt 0:00:01] Black mates.} 37. Rxc1 {[%emt 0:00:02] KQR-KQB} Qf4+ {[%emt 0:00:01]} 38. Kg1 {[%emt 0:00:01]} Qxc1+ {[%emt 0:00:01]} 39. Kh2 {[%emt 0:00:00]} Be5+ {[%emt 0:00:02]} 40. g3 {[%emt 0:00:02]} Qd2+ {[%emt 0:00:01]} 41. Kg1 {[%emt 0:00:01]} Qe1+ {[%emt 0:00:01]} 42. Kg2 {[%emt 0:00:02]} Qxg3+ {[%emt 0:00:01]} 43. Kf1 {[%emt 0:00:01]} Qxh3+ {[%emt 0:00:02] Never resign too early!   Weighted Error Value: White=0.78/Black=0.42.  Loses game:     	White=2     	---        Missed win:     	---       	Black=1      Mistake:       	White=6     	Black=5      Inaccurate:     	White=2     	Black=1      OK:         	White=7     	Black=4      Best:        	White=1     	Black=2      Strong:       	---       	Black=1} 0-1

[Event "European Women Blitz-ch 2024"]
[Site "Monaco"]
[Date "2025.01.10"]
[Round "8.9"]
[White "Garcia Martin, Marta"]
[Black "Khotenashvili, Bella"]
[Result "0-1"]
[Annotator "TA"]
[ECO "B15"]
[WhiteElo "2323"]
[BlackElo "2420"]
[PlyCount "64"]
[EventDate "2025.01.06"]
[EventType "swiss"]
[EventCountry "MNC"]
[SourceTitle "playchess.com"]
[Source "ChessBase"]
[SourceQuality "1"]
[TimeControl "180+2"]

{[%evp 15,64,36,52,6,106,87,110,0,83,91,76,83,89,80,83,80,81,74,120,45,49,19,2,-6,74,64,71,18,49,17,29,0,7,0,33,-3075,-81,-344,-204,-212,-204,-197,-185,-514,-499,-803,-820,-29992,-29993,-29995,-29996]} 1. e4 {[%emt 0:00:02]} c6 {[%emt 0:00:01]} 2. Nf3 {[%emt 0:00:02]} d5 {[%emt 0:00:05]} 3. Nc3 {[%emt 0:00:02]} g6 {[%emt 0:00:01]} 4. d4 {[%emt 0:00:12]} Bg7 {[%emt 0:00:02]} 5. h3 {[%emt 0:00:14]} Nh6 {[%emt 0:00:04]} 6. Bd3 {[%emt 0:00:10]} O-O {[%emt 0:00:05]} 7. O-O {[%emt 0:00:03]} f6 {[%emt 0:00:00]} 8. Re1 {[%emt 0:00:06]} Nf7 {[%emt 0:00:02]} 9. Bf4 {[%emt 0:00:50]} (9. b3 $14) 9... Na6 {[%emt 0:00:25]} (9... e5 $11 10. Be3 dxe4 11. Nxe4 f5) 10. Bh2 {[%emt 0:00:32]} e6 {[%emt 0:00:18]} 11. e5 {[%emt 0:00:33]} (11. Bxa6 $16 {Strongly threatening Bd3.} bxa6 12. a3) 11... f5 {[%emt 0:01:03]} (11... fxe5 $1 $11 {keeps the balance.} 12. dxe5 Nc5) 12. Bxa6 $16 {[%emt 0:00:02]} bxa6 {[%emt 0:00:01]} 13. Na4 {[%emt 0:00:00]} g5 {[%emt 0:00:07]} 14. Nd2 {[%emt 0:00:13]} Rb8 {[%emt 0:00:21]} 15. b3 {[%emt 0:00:06]} Nh6 {[%emt 0:00:09]} 16. Nc5 {[%emt 0:00:03]} Qe8 {[%emt 0:00:08]} ({Better is} 16... f4) 17. Nf1 {[%emt 0:00:11]} (17. Nd3 $16) 17... f4 $14 {[%emt 0:00:10]} 18. Nd2 {[%emt 0:00:04][%cal Oh3h4]} Qg6 {[%emt 0:00:02]} 19. Nf3 {[%emt 0:00:02]} g4 {[%emt 0:00:06] [#]} (19... Nf5 $11) 20. hxg4 $1 $16 {[%emt 0:00:04]} Nxg4 {[%emt 0:00:03]} 21. Qd3 {[%emt 0:00:06]} ({White should try} 21. Rc1 $16) 21... Qh5 $11 {[%emt 0:00:02]} 22. Qd2 {[%emt 0:00:03]} Bh6 {[%emt 0:00:02]} 23. Qd3 {[%emt 0:00:03]} (23. Nd3 Nxh2 24. Nxh2 f3 $17) 23... Rf7 {[%emt 0:00:02]} 24. c4 {[%emt 0:00:02]} Rg7 {[%emt 0:00:02]} 25. Kh1 $2 {[%emt 0:00:01][%mdl 8192]} (25. cxd5 $14 cxd5 26. Re2) 25... Kh8 $2 {[%emt 0:00:10]} (25... Nxf2+ $19 {has better winning chances.} 26. Kg1 Nxd3) 26. Rf1 $2 {[%emt 0:00:03][%mdl 8192]} (26. Qf1 $17 {was necessary.}) 26... Bd7 {[%emt 0:00:02]} (26... Rg6 $142 {Strongly threatening ...Bg5.} 27. Kg1 Bg5) 27. cxd5 $19 {[%emt 0:00:03]} cxd5 {[%emt 0:00:04]} 28. Nxd7 {[%emt 0:00:02]} Rxd7 $40 {[%emt 0:00:01][%mdl 128] Black attacks with force.} 29. Rac1 $2 {[%emt 0:00:01]} (29. Qxa6 Re7 30. Qd6) 29... Rg8 {[%emt 0:00:08]} 30. Rc6 {[%emt 0:00:02]} (30. Rc2 $142 Rdg7 31. Rg1) 30... Rdg7 {[%emt 0:00:01] ( -> ...Nxh2)} 31. Rxe6 {[%emt 0:00:04]} Nxh2 {[%emt 0:00:01]} 32. Nxh2 {[%emt 0:00:01]} Rxg2 {[%emt 0:00:01]} 0-1